[Event "6th NTCC Final 2080"]
[Site "Lalitpur"]
[Date "2024.01.13"]
[Round "2.1"]
[White "Jaiswal, Rupesh"]
[Black "Silwal, Purushottam"]
[Result "1-0"]
[ECO "B06"]
[WhiteElo "2009"]
[BlackElo "1831"]
[Annotator "RC"]
[PlyCount "155"]
[EventDate "2024.01.03"]
[EventType "k.o."]
[EventCountry "NEP"]
[SourceTitle "playchess.com"]
[Source "ChessBase"]
[SourceQuality "1"]
[TimeControl "5400+30"]

1. e4 c5 {[%emt 1:31:00]} 2. Nf3 {[%emt 1:31:30]} g6 {[%emt 0:00:30]} 3. c3 d5 {[%emt 0:00:30]} 4. exd5 {[%emt 0:01:00]} Qxd5 {[%emt 0:00:30]} 5. d4 {[%emt 0:00:30]} Bg7 {[%emt 0:00:30]} 6. Na3 {[%emt 0:00:00]} cxd4 {[%emt 0:00:00]} 7. Nb5 {[%emt 0:00:00]} Na6 {[%emt 0:00:00]} 8. Nbxd4 {[%emt 0:00:00]} Nf6 {[%emt 0:00:00]} 9. Bb5+ {[%emt 0:00:00]} Bd7 {[%emt 0:00:00]} 10. Bxa6 {[%emt 0:00:00]} bxa6 {[%emt 0:00:00]} 11. O-O {[%emt 0:00:00]} O-O {[%emt 0:00:00]} 12. Re1 {[%emt 0:00:00]} Rfe8 {[%emt 0:00:00]} 13. Ne5 {[%emt 0:00:00]} Bc8 {[%emt 0:00:00]} 14. Qe2 {[%emt 0:00:00]} Bb7 {[%emt 0:00:00]} 15. Ndf3 {[%emt 0:00:00]} Ne4 {[%emt 0:00:00]} 16. Ng4 {[%emt 0:00:00]} h5 {[%emt 0:00:00]} 17. Ne3 {[%emt 0:00:00]} Qc6 {[%emt 0:00:00]} 18. Nc4 {[%emt 0:00:00]} Qc7 {[%emt 0:00:00]} 19. Be3 {[%emt 0:00:00]} Rac8 {[%emt 0:00:00]} 20. Ncd2 {[%emt 0:00:00]} Nd6 {[%emt 0:00:00]} 21. Rac1 {[%emt 0:00:00]} Nf5 {[%emt 0:00:00]} 22. Nb3 {[%emt 0:00:00]} e5 {[%emt 0:00:00]} 23. Red1 {[%emt 0:00:00]} e4 {[%emt 0:00:00]} 24. Nfd4 {[%emt 0:00:00]} Nxe3 {[%emt 0:00:00]} 25. fxe3 {[%emt 0:00:00]} Be5 {[%emt 0:00:00]} 26. h3 {[%emt 0:00:00]} Qe7 {[%emt 0:00:00]} 27. Qf2 {[%emt 0:00:00]} Bb8 {[%emt 0:00:00]} 28. Ne2 {[%emt 0:00:00]} Qe5 {[%emt 0:00:00]} 29. g3 {[%emt 0:00:00]} Rc6 {[%emt 0:00:00]} 30. Rf1 {[%emt 0:00:00]} Rf8 {[%emt 0:00:00]} 31. Nbd4 {[%emt 0:00:00]} Rb6 {[%emt 0:00:00]} 32. b3 {[%emt 0:00:00]} Qg5 {[%emt 0:00:00]} 33. c4 {[%emt 0:00:00]} Be5 {[%emt 0:00:00]} 34. h4 {[%emt 0:00:00]} Qg4 {[%emt 0:00:00]} 35. c5 {[%emt 0:00:22]} Rf6 {[%emt 0:00:00]} 36. Qxf6 {[%emt 0:02:25]} Bxf6 {[%emt 0:00:00]} 37. Rxf6 {[%emt 0:00:02]} g5 {[%emt 0:01:29]} 38. hxg5 {[%emt 0:00:55]} Qxg5 {[%emt 0:00:20]} 39. Rf4 {[%emt 0:00:28]} h4 {[%emt 0:01:33]} 40. Kh2 {[%emt 0:02:22]} hxg3+ {[%emt 0:02:00]} 41. Nxg3 {[%emt 0:00:09]} Rc8 {[%emt 0:02:07]} 42. Ngf5 {[%emt 0:01:23]} Kf8 {[%emt 0:02:51]} 43. b4 {[%emt 0:03:05]} Bd5 {[%emt 0:01:07]} 44. Rg1 {[%emt 0:00:29]} Qf6 {[%emt 0:00:18]} 45. Rfg4 {[%emt 0:01:01]} Ke8 {[%emt 0:00:33]} 46. Nd6+ {[%emt 0:01:23]} Kd7 {[%emt 0:00:10]} 47. Nxc8 {[%emt 0:00:24]} Kxc8 {[%emt 0:00:09]} 48. Rf4 {[%emt 0:02:38]} Qe5 {[%emt 0:01:47]} 49. a4 {[%emt 0:00:45]} Be6 {[%emt 0:01:16]} 50. Nxe6 {[%emt 0:02:04]} Qxe6 {[%emt 0:00:08]} 51. Rgf1 {[%emt 0:00:20]} Qa2+ {[%emt 0:00:36]} 52. Kg3 {[%emt 0:00:15]} Qe2 {[%emt 0:00:20]} 53. Rxf7 {[%emt 0:00:24]} Qxe3+ {[%emt 0:00:07]} 54. Kg4 {[%emt 0:00:41]} Qe2+ {[%emt 0:00:08]} 55. Kg5 {[%emt 0:00:33]} Qd2+ {[%emt 0:00:40]} 56. Kg6 {[%emt 0:00:49]} Qg2+ {[%emt 0:00:52]} 57. Kh7 {[%emt 0:01:08]} e3 {[%emt 0:00:13]} 58. R1f6 {[%emt 0:01:07]} Qe4+ {[%emt 0:01:57]} 59. Kg7 {[%emt 0:00:51]} Qg4+ {[%emt 0:03:15]} 60. Kh7 {[%emt 0:00:11]} Qe4+ {[%emt 0:01:09]} 61. Kg7 {[%emt 0:00:49]} Qg4+ {[%emt 0:00:27]} 62. Kh7 {[%emt 0:00:13]} Qh5+ {[%emt 0:00:50]} 63. Kg8 {[%emt 0:00:51]} Qg5+ {[%emt 0:01:36]} 64. Kh7 {[%emt 0:00:18]} Qh5+ {[%emt 0:00:18]} 65. Kg7 {[%emt 0:00:53]} Qg5+ {[%emt 0:00:35]} 66. Kf8 {[%emt 0:00:09]} e2 {[%emt 0:00:24]} 67. Rc6+ {[%emt 0:00:29]} Kb8 {[%emt 0:00:31]} 68. Re6 {[%emt 0:00:02]} Qd8+ {[%emt 0:00:14]} 69. Kg7 {[%emt 0:00:02]} Qd4+ {[%emt 0:00:31]} 70. Kf8 {[%emt 0:00:29]} Qh8+ {[%emt 0:00:24]} 71. Ke7 {[%emt 0:00:01]} Kc7 {[%emt 0:01:32]} 72. Rxe2 {[%emt 0:00:33]} Qd8+ {[%emt 0:00:22]} 73. Ke6+ {[%emt 0:00:22]} Kc6 {[%emt 0:00:06]} 74. Rf6 {[%emt 0:00:24]} Qd5+ {[%emt 0:00:24]} 75. Ke7+ {[%emt 0:00:04]} Kc7 {[%emt 0:00:10]} 76. Ree6 {[%emt 0:00:19]} Qg5 {[%emt 0:00:31]} 77. Kf8 {[%emt 0:00:59]} Qd5 {[%emt 0:00:41]} 78. Rf7+ {[%emt 0:00:08]} 1-0

[Event "6th NTCC Final 2080"]
[Site "Lalitpur"]
[Date "2024.01.13"]
[Round "2.2"]
[White "Chokami, Bikram"]
[Black "Dahal, Sushrut"]
[Result "1/2-1/2"]
[ECO "B40"]
[WhiteElo "1808"]
[BlackElo "1895"]
[Annotator "NA RC COMBH"]
[PlyCount "154"]
[EventDate "2024.01.03"]
[EventType "k.o."]
[EventCountry "NEP"]
[SourceTitle "playchess.com"]
[Source "ChessBase"]
[SourceQuality "1"]
[TimeControl "5400+30"]

1. e4 {[%emt 1:31:00]} c5 {[%emt 1:31:00]} 2. Nf3 {[%emt 0:00:30]} e6 {[%emt 0:00:30]} 3. c4 {[%emt 0:00:30]} Nc6 {[%emt 0:00:30]} 4. d3 d5 5. exd5 exd5 6. cxd5 {[%emt 0:01:30]} Qxd5 {[%emt 0:00:00]} 7. Nc3 {[%emt 0:00:00]} Qd8 {[%emt 0:00:00]} 8. Be2 {[%emt 0:00:00]} Nf6 {[%emt 0:00:00]} 9. O-O {[%emt 0:00:00]} Be7 {[%emt 0:00:00]} 10. Be3 {[%emt 0:00:00]} O-O {[%emt 0:00:00]} 11. d4 {[%emt 0:00:00]} cxd4 {[%emt 0:00:00]} 12. Nxd4 {[%emt 0:00:00]} Nxd4 {[%emt 0:00:00]} 13. Bxd4 {[%emt 0:00:00]} Bd7 {[%emt 0:00:00]} 14. Bf3 {[%emt 0:00:00]} Bc6 {[%emt 0:00:00]} 15. Bxc6 {[%emt 0:00:00]} bxc6 {[%emt 0:00:00]} 16. Qa4 {[%emt 0:00:00]} c5 {[%emt 0:00:00]} 17. Bxf6 {[%emt 0:00:00]} Bxf6 {[%emt 0:00:00]} 18. Rac1 {[%emt 0:00:00]} Re8 {[%emt 0:00:00]} 19. b3 {[%emt 0:00:00]} Bd4 {[%emt 0:00:00]} 20. Qc4 {[%emt 0:00:00]} Rc8 {[%emt 0:00:00]} 21. Na4 {[%emt 0:00:00]} h6 {[%emt 0:00:00]} 22. g3 {[%emt 0:00:00]} Qf6 {[%emt 0:00:00]} 23. Rc2 {[%emt 0:00:00]} Qf5 {[%emt 0:00:00]} 24. Kg2 {[%emt 0:00:00]} a5 {[%emt 0:00:00]} 25. Re2 {[%emt 0:00:00]} Qd7 {[%emt 0:00:00]} 26. Rfe1 {[%emt 0:00:00]} Rxe2 {[%emt 0:00:00]} 27. Rxe2 {[%emt 0:00:00]} Qc6+ {[%emt 0:00:00]} 28. f3 {[%emt 0:00:00]} Qd6 {[%emt 0:00:00]} 29. Qb5 {[%emt 0:00:00]} Qc7 {[%emt 0:00:00]} (29... Qc6 $11 30. Qxc6 Rxc6) 30. Nb6 {[%emt 0:00:00]} Qc6 {[%emt 0:00:00]} 31. Qxa5 {[%emt 0:00:00]} Rb8 {[%emt 0:00:00]} 32. Na4 {[%emt 0:00:00]} g5 {[%emt 0:00:40]} 33. h3 {[%emt 0:00:00]} h5 {[%emt 0:04:44]} 34. Qd2 {[%emt 0:00:00]} Bf6 {[%emt 0:01:09]} 35. Qe3 {[%emt 0:00:00]} g4 {[%emt 0:02:26]} 36. hxg4 {[%emt 0:00:00]} hxg4 {[%emt 0:00:16]} 37. Qe4 {[%emt 0:00:00]} gxf3+ {[%emt 0:00:46]} 38. Qxf3 {[%emt 0:00:00]} Qxf3+ {[%emt 0:03:58]} 39. Kxf3 {[%emt 0:00:00]} c4 {[%emt 0:00:37]} 40. bxc4 {[%emt 0:00:00]} Rb4 {[%emt 0:00:04]} 41. Nc5 {[%emt 0:00:00]} Rxc4 {[%emt 0:00:45]} 42. Ne4 {[%emt 0:00:00]} Be7 {[%emt 0:00:33]} 43. Kf4 {[%emt 0:00:00]} Kg7 {[%emt 0:00:31]} 44. Ke5 {[%emt 0:00:00]} Ra4 {[%emt 0:00:43]} 45. g4 {[%emt 0:00:00]} Kg6 {[%emt 0:00:53]} 46. Kd5 {[%emt 0:00:00]} Ra3 {[%emt 0:01:14]} 47. Kc6 {[%emt 0:00:00]} Bf8 {[%emt 0:00:39]} 48. Kb5 {[%emt 0:00:00]} Bg7 {[%emt 0:00:27]} ({Black should play} 48... f6 $11) 49. Kb4 {[%emt 0:00:00]} Bf8+ {[%emt 0:00:04]} 50. Kc4 {[%emt 0:00:00]} Ra4+ {[%emt 0:00:21]} 51. Kb3 {[%emt 0:00:00]} Ra3+ {[%emt 0:00:07]} 52. Kb2 {[%emt 0:00:00]} Ra4 {[%emt 0:00:09]} 53. Kb3 {[%emt 0:00:00]} Ra3+ {[%emt 0:00:06]} 54. Kc4 {[%emt 0:00:00]} Ra4+ {[%emt 0:00:08]} 55. Kd5 {[%emt 0:00:00]} Ra5+ {[%emt 0:00:16]} 56. Kd4 {[%emt 0:00:00]} Ra4+ {[%emt 0:00:31]} 57. Ke5 {[%emt 0:00:00]} Ra5+ {[%emt 0:00:25]} 58. Kf4 {[%emt 0:00:00]} Bh6+ {[%emt 0:00:23]} 59. Kg3 {[%emt 0:00:00]} Ra3+ {[%emt 0:00:22]} 60. Kg2 {[%emt 0:00:00]} Ra4 {[%emt 0:00:13]} 61. Nf2 {[%emt 0:00:00]} Ra3 {[%emt 0:01:20]} 62. Nh3 {[%emt 0:00:00]} Bg5 {[%emt 0:01:05]} 63. Rc2 {[%emt 0:00:00]} Bh4 {[%emt 0:00:20]} 64. Kh2 {[%emt 0:00:00]} Bg3+ {[%emt 0:00:13]} 65. Kg2 {[%emt 0:00:00]} Bh4 {[%emt 0:00:04]} 66. Rc6+ {[%emt 0:00:00]} f6 {[%emt 0:00:14]} 67. Nf4+ {[%emt 0:00:00]} Kg5 {[%emt 0:00:32]} 68. Ne6+ {[%emt 0:00:00]} Kxg4 {[%emt 0:00:37]} 69. Rc4+ {[%emt 0:00:00]} Kf5 {[%emt 0:01:05]} 70. Ng7+ {[%emt 0:00:00]} Kg6 {[%emt 0:00:09]} 71. Ne6 {[%emt 0:00:00]} Rxa2+ {[%emt 0:00:08]} 72. Kf3 {[%emt 0:00:09]} Bg5 {[%emt 0:00:04]} 73. Kg4 {[%emt 0:02:08]} Ra3 {[%emt 0:00:26]} 74. Nf8+ {[%emt 0:00:44]} Kf7 {[%emt 0:00:19]} 75. Nh7 {[%emt 0:00:33]} Ra7 {[%emt 0:00:18]} 76. Kh5 {[%emt 0:00:32]} Kg7 {[%emt 0:00:13]} 77. Nxg5 $11 {[%emt 0:01:10]} fxg5 {[%emt 0:00:02]} 1/2-1/2

[Event "6th NTCC Final 2080"]
[Site "Lalitpur"]
[Date "2024.01.13"]
[Round "2.3"]
[White "Shrestha, Muhan Narshing"]
[Black "Duwal, Swornim"]
[Result "1-0"]
[ECO "E04"]
[WhiteElo "1693"]
[BlackElo "1390"]
[Annotator "NA RC COMBH"]
[PlyCount "129"]
[EventDate "2024.01.03"]
[EventType "k.o."]
[EventCountry "NEP"]
[SourceTitle "playchess.com"]
[Source "ChessBase"]
[SourceQuality "1"]
[TimeControl "5400+30"]

1. d4 {[%emt 1:31:00]} Nf6 2. Nf3 {[%emt 0:00:30]} d5 3. c4 e6 4. g3 dxc4 5. Bg2 c5 {[%emt 1:33:00]} 6. O-O {[%emt 0:02:00]} Nc6 7. Qa4 {[%emt 0:00:30]} Bd7 {[%emt 0:01:00]} 8. Qxc4 {[%emt 0:00:30]} cxd4 {[%emt 0:00:30]} 9. Nxd4 {[%emt 0:00:00]} Rc8 {[%emt 0:00:00]} 10. Nc3 {[%emt 0:00:00]} Nxd4 {[%emt 0:00:00]} 11. Qxd4 {[%emt 0:00:00]} Bc5 {[%emt 0:00:00]} 12. Qd3 {[%emt 0:00:00]} Bc6 {[%emt 0:00:00]} 13. Bxc6+ {[%emt 0:00:00]} Rxc6 {[%emt 0:00:00]} 14. Qxd8+ {[%emt 0:00:00]} Kxd8 {[%emt 0:00:00]} 15. Rd1+ {[%emt 0:00:00]} Ke7 {[%emt 0:00:00]} 16. Bg5 {[%emt 0:00:00]} Re8 {[%emt 0:00:00]} 17. Ne4 {[%emt 0:00:00]} Bb6 {[%emt 0:00:00]} 18. Rac1 {[%emt 0:00:00]} Rec8 {[%emt 0:00:00]} 19. Rc3 {[%emt 0:00:00]} Rxc3 {[%emt 0:00:00]} 20. Nxc3 {[%emt 0:00:00]} Rc4 {[%emt 0:00:00]} 21. Rd3 {[%emt 0:00:00]} Bd4 {[%emt 0:00:00]} 22. Kg2 {[%emt 0:00:00]} Bxc3 {[%emt 0:00:00]} 23. Rxc3 {[%emt 0:00:00]} Rxc3 {[%emt 0:00:00]} 24. bxc3 {[%emt 0:00:00]} Kd6 {[%emt 0:00:00]} 25. Bxf6 {[%emt 0:00:00]} gxf6 {[%emt 0:00:00]} 26. Kf3 {[%emt 0:00:00]} Kd5 {[%emt 0:00:00]} 27. Kg4 {[%emt 0:00:00]} Kc4 {[%emt 0:00:00]} 28. Kh5 {[%emt 0:00:00]} Kxc3 {[%emt 0:00:00]} 29. Kh6 {[%emt 0:00:00]} b5 {[%emt 0:00:00]} 30. Kxh7 {[%emt 0:00:00]} b4 {[%emt 0:00:00]} 31. Kg7 {[%emt 0:00:00]} Kb2 {[%emt 0:00:00]} 32. h4 {[%emt 0:00:00]} Kxa2 {[%emt 0:00:00]} 33. h5 {[%emt 0:00:00]} b3 {[%emt 0:00:00]} 34. h6 {[%emt 0:00:00]} b2 {[%emt 0:00:00]} 35. h7 {[%emt 0:00:00]} b1=Q {[%emt 0:00:00]} 36. h8=Q {[%emt 0:00:00]} Qg6+ {[%emt 0:00:00]} 37. Kf8 {[%emt 0:00:00]} a5 {[%emt 0:00:00]} 38. Qh4 {[%emt 0:00:00]} Kb3 {[%emt 0:00:00]} 39. Qf4 {[%emt 0:00:00]} Qf5 {[%emt 0:00:00]} 40. Qe3+ {[%emt 0:00:00]} Kb4 {[%emt 0:00:00]} 41. Qd4+ {[%emt 0:00:00]} Kb5 {[%emt 0:00:00]} 42. Qd7+ {[%emt 0:00:00]} Kc4 {[%emt 0:00:00]} 43. Qa4+ {[%emt 0:00:00]} Kc3 {[%emt 0:00:00]} 44. g4 {[%emt 0:00:00]} Qxf2 {[%emt 0:00:00]} 45. Qxa5+ {[%emt 0:00:00]} Kc2 {[%emt 0:00:00]} 46. Kxf7 {[%emt 0:00:00]} Qf4 {[%emt 0:00:00]} 47. Qa2+ {[%emt 0:00:00]} Kd1 {[%emt 0:00:00]} 48. Qxe6 {[%emt 0:00:00]} Kd2 {[%emt 0:00:00]} 49. e4 {[%emt 0:00:00]} Ke3 {[%emt 0:00:00]} 50. Qf5 {[%emt 0:00:00]} Qd6 {[%emt 0:03:15]} 51. Kg6 {[%emt 0:21:30]} Qf8 {[%emt 0:00:59]} 52. Qxf6 {[%emt 0:00:00]} Qe8+ {[%emt 0:02:08]} 53. Kh6 {[%emt 0:00:00]} Qxe4 {[%emt 0:00:30]} 54. g5 {[%emt 0:00:00]} Qh4+ {[%emt 0:00:41]} 55. Kg7 {[%emt 0:00:00]} Qe4 {[%emt 0:01:05]} 56. g6 {[%emt 0:00:00]} Qe8 {[%emt 0:04:47]} 57. Qf7 {[%emt 0:00:00]} Qe5+ {[%emt 0:00:06]} 58. Kf8 {[%emt 0:00:00]} Qh8+ {[%emt 0:00:17]} 59. Ke7 {[%emt 0:00:00]} Qh4+ {[%emt 0:01:59]} 60. Qf6 {[%emt 0:00:00]} Qb4+ {[%emt 0:00:24]} 61. Kf7 {[%emt 0:00:00]} Kd3 {[%emt 0:00:56]} 62. Qf3+ {[%emt 0:00:00]} Kc2 {[%emt 0:00:41]} 63. g7 {[%emt 0:00:00]} Qc4+ {[%emt 0:00:50]} 64. Kg6 {[%emt 0:00:00]} Qg8 {[%emt 0:00:47]} 65. Qf7 {[%emt 0:00:00]} 1-0

[Event "6th NTCC Final 2080"]
[Site "Lalitpur"]
[Date "2024.01.13"]
[Round "2.4"]
[White "Shah, Abheek"]
[Black "Lohani, Sujana"]
[Result "0-1"]
[ECO "B06"]
[WhiteElo "1543"]
[BlackElo "1756"]
[Annotator "NA RC COMBH"]
[PlyCount "104"]
[EventDate "2024.01.03"]
[EventType "k.o."]
[EventCountry "NEP"]
[SourceTitle "playchess.com"]
[Source "ChessBase"]
[SourceQuality "1"]
[TimeControl "5400+30"]

1. e4 {[%emt 1:31:00]} g6 {[%emt 1:31:00]} 2. d4 Bg7 {[%emt 0:00:30]} 3. Nc3 {[%emt 0:01:00]} d6 {[%emt 0:00:30]} 4. Be3 {[%emt 0:00:30]} c6 {[%emt 0:00:00]} 5. Qd2 {[%emt 0:00:00]} Qa5 {[%emt 0:00:00]} 6. f3 {[%emt 0:00:00]} Na6 {[%emt 0:00:00]} 7. Nge2 {[%emt 0:00:00]} b5 {[%emt 0:00:00]} 8. Nc1 {[%emt 0:00:00]} Rb8 {[%emt 0:00:00]} 9. Nb3 {[%emt 0:00:00]} Qc7 {[%emt 0:00:00]} 10. a3 {[%emt 0:00:00]} b4 {[%emt 0:00:00]} 11. axb4 {[%emt 0:00:00]} Nxb4 {[%emt 0:00:00]} 12. Be2 {[%emt 0:00:00]} Nf6 {[%emt 0:00:00]} 13. O-O {[%emt 0:00:00]} O-O {[%emt 0:00:00]} 14. Ra5 {[%emt 0:00:00]} Nxc2 {[%emt 0:00:00]} 15. Qxc2 {[%emt 0:00:00]} Rxb3 {[%emt 0:00:00]} 16. Rfa1 {[%emt 0:00:00]} Qb8 {[%emt 0:00:00]} 17. R1a2 {[%emt 0:00:00]} Rb7 {[%emt 0:00:00]} 18. Ba6 {[%emt 0:00:00]} Rd7 {[%emt 0:00:00]} 19. Qa4 {[%emt 0:00:00]} Bxa6 {[%emt 0:00:00]} 20. Rxa6 {[%emt 0:00:00]} Rb7 {[%emt 0:00:00]} 21. Rxa7 {[%emt 0:00:00]} Rxb2 {[%emt 0:00:00]} 22. Rxe7 {[%emt 0:00:00]} c5 {[%emt 0:00:00]} 23. Ra7 {[%emt 0:00:00]} Rb4 {[%emt 0:00:00]} 24. Qd1 {[%emt 0:00:00]} Ng4 25. fxg4 {[%emt 0:00:00]} cxd4 {[%emt 0:01:15]} 26. Ra8 {[%emt 0:00:00]} Qxa8 {[%emt 0:02:59]} 27. Rxa8 {[%emt 0:00:00]} Rxa8 {[%emt 0:00:05]} 28. Nd5 {[%emt 0:00:00]} Rb2 {[%emt 0:02:10]} 29. Bg5 {[%emt 0:00:00]} Rba2 {[%emt 0:01:44]} 30. h3 {[%emt 0:00:00]} Ra1 {[%emt 0:00:13]} 31. Bc1 {[%emt 0:00:00]} d3 {[%emt 0:00:53]} 32. Kf2 {[%emt 0:00:00]} R8a2+ {[%emt 0:00:47]} 33. Kf3 {[%emt 0:00:00]} d2 {[%emt 0:00:26]} 34. Qxd2 {[%emt 0:00:00]} Rxd2 {[%emt 0:00:08]} 35. Bxd2 {[%emt 0:00:00]} Rf1+ {[%emt 0:01:21]} 36. Ke2 {[%emt 0:00:00]} Ra1 {[%emt 0:00:27]} 37. Kf3 {[%emt 0:00:00]} Ra3+ {[%emt 0:00:16]} 38. Be3 {[%emt 0:00:00]} Be5 {[%emt 0:00:47]} 39. g5 {[%emt 0:00:00]} Kf8 {[%emt 0:01:13]} 40. g4 {[%emt 0:00:00]} Ke8 {[%emt 0:00:19]} 41. h4 {[%emt 0:00:00]} Kd7 {[%emt 0:01:07]} 42. Ke2 {[%emt 0:00:00]} Ke6 {[%emt 0:01:11]} 43. Nc7+ {[%emt 0:00:00]} Kd7 {[%emt 0:00:24]} 44. Nd5 {[%emt 0:00:00]} Ra2+ {[%emt 0:00:17]} 45. Kf3 {[%emt 0:00:00]} Rh2 {[%emt 0:00:12]} 46. Bf2 {[%emt 0:00:00]} Rh3+ {[%emt 0:00:48]} 47. Kg2 {[%emt 0:00:00]} Ra3 {[%emt 0:00:34]} 48. Be3 {[%emt 0:00:00]} Kc6 {[%emt 0:02:07]} 49. Kf2 {[%emt 0:00:00]} Ra2+ {[%emt 0:00:36]} 50. Kf3 {[%emt 0:00:00]} Ra1 {[%emt 0:00:24]} 51. Bf2 {[%emt 0:00:00]} Kb5 {[%emt 0:00:31]} 52. Bg3 {[%emt 0:00:00]} Ra3+ {[%emt 0:00:09]} 0-1

[Event "6th NTCC Final 2080"]
[Site "Lalitpur"]
[Date "2024.01.13"]
[Round "2.5"]
[White "Nepal, Prakash Chandra"]
[Black "Thapa, Krishna"]
[Result "0-1"]
[ECO "D78"]
[WhiteElo "1900"]
[BlackElo "1944"]
[Annotator "RC"]
[PlyCount "171"]
[EventDate "2024.01.03"]
[EventType "k.o."]
[EventCountry "NEP"]
[SourceTitle "playchess.com"]
[Source "ChessBase"]
[SourceQuality "1"]
[TimeControl "5400+30"]

1. d4 {[%emt 1:31:00]} Nf6 {[%emt 1:31:00]} 2. Nf3 {[%emt 0:00:30]} g6 {[%emt 0:00:30]} 3. b3 {[%emt 0:00:30]} Bg7 {[%emt 0:00:30]} 4. Bb2 {[%emt 0:00:30]} d5 {[%emt 0:00:30]} 5. g3 {[%emt 0:00:30]} O-O {[%emt 0:00:30]} 6. Bg2 c6 {[%emt 0:00:30]} 7. O-O {[%emt 0:01:00]} a5 {[%emt 0:00:30]} 8. c4 {[%emt 0:00:00]} Bg4 {[%emt 0:00:00]} 9. Ne5 {[%emt 0:00:00]} Be6 {[%emt 0:00:00]} 10. Nd2 {[%emt 0:00:00]} Nbd7 {[%emt 0:00:00]} 11. Nxd7 {[%emt 0:00:00]} Qxd7 {[%emt 0:00:00]} 12. Re1 {[%emt 0:00:00]} Rfd8 {[%emt 0:00:00]} 13. c5 {[%emt 0:00:00]} Qc7 {[%emt 0:00:00]} 14. Rc1 {[%emt 0:00:00]} Bh6 {[%emt 0:00:00]} 15. e3 {[%emt 0:00:00]} Bg4 {[%emt 0:00:00]} 16. f3 {[%emt 0:00:00]} Be6 {[%emt 0:00:00]} 17. a3 {[%emt 0:00:00]} Qd7 {[%emt 0:00:00]} 18. Nb1 {[%emt 0:00:00]} Qc7 {[%emt 0:00:00]} 19. Nc3 {[%emt 0:00:00]} Nd7 {[%emt 0:00:00]} 20. Ra1 {[%emt 0:00:00]} Bg7 {[%emt 0:00:00]} 21. b4 {[%emt 0:00:00]} b6 {[%emt 0:00:00]} 22. Qd2 {[%emt 0:00:00]} bxc5 {[%emt 0:00:00]} 23. bxc5 {[%emt 0:00:00]} Rdb8 {[%emt 0:00:00]} 24. Na4 {[%emt 0:00:00]} Ra7 {[%emt 0:00:00]} 25. Bc3 {[%emt 0:00:00]} h5 {[%emt 0:00:00]} 26. Rab1 {[%emt 0:00:00]} Rxb1 {[%emt 0:00:00]} 27. Rxb1 {[%emt 0:00:00]} Bh6 {[%emt 0:00:00]} 28. Nb6 {[%emt 0:00:00]} Bf5 {[%emt 0:00:00]} 29. Rb2 {[%emt 0:00:00]} f6 {[%emt 0:00:00]} 30. Nxd7 {[%emt 0:00:00]} Bxd7 {[%emt 0:00:00]} 31. Qd3 {[%emt 0:00:00]} Kf7 {[%emt 0:00:00]} 32. e4 {[%emt 0:00:00]} Bc1 {[%emt 0:00:00]} 33. Ra2 {[%emt 0:00:36]} Be6 {[%emt 0:00:00]} 34. Ra1 {[%emt 0:00:09]} Bh6 {[%emt 0:00:00]} 35. Rb1 {[%emt 0:00:29]} h4 {[%emt 0:00:00]} 36. Kf2 {[%emt 0:03:44]} h3 {[%emt 0:00:00]} 37. Bf1 {[%emt 0:00:19]} Bc8 {[%emt 0:00:00]} 38. Rb6 {[%emt 0:00:45]} Bf8 {[%emt 0:00:00]} 39. Qd2 {[%emt 0:04:19]} e5 {[%emt 0:00:00]} 40. Bd3 {[%emt 0:00:52]} Be6 {[%emt 0:00:52]} 41. Qc2 {[%emt 0:00:34]} g5 {[%emt 0:02:15]} 42. exd5 {[%emt 0:00:35]} Bxd5 {[%emt 0:00:15]} 43. Be4 {[%emt 0:00:27]} Qd7 {[%emt 0:01:16]} 44. Bg6+ {[%emt 0:02:12]} Kg7 {[%emt 0:01:12]} 45. Bf5 {[%emt 0:00:52]} Be6 {[%emt 0:00:33]} 46. Bxe6 {[%emt 0:00:19]} Qxe6 {[%emt 0:00:40]} 47. Qb3 {[%emt 0:01:05]} Qd7 {[%emt 0:00:57]} 48. Qc4 {[%emt 0:00:39]} exd4 {[%emt 0:01:55]} 49. Bxd4 {[%emt 0:00:45]} Be7 {[%emt 0:01:09]} 50. Rb8 {[%emt 0:00:29]} Bd8 {[%emt 0:01:17]} 51. Qc3 {[%emt 0:00:42]} Qe7 {[%emt 0:00:16]} 52. Qe3 {[%emt 0:00:17]} Qxe3+ {[%emt 0:00:45]} 53. Bxe3 {[%emt 0:00:16]} Rd7 {[%emt 0:00:18]} 54. Ke2 {[%emt 0:00:53]} Bc7 {[%emt 0:00:27]} 55. Rb7 {[%emt 0:00:21]} Kf7 {[%emt 0:00:34]} 56. f4 {[%emt 0:01:48]} g4 {[%emt 0:00:49]} 57. Ra7 {[%emt 0:00:42]} Ke6 {[%emt 0:00:27]} 58. Bd2 {[%emt 0:00:09]} Bd8 {[%emt 0:01:46]} 59. Rxd7 {[%emt 0:00:19]} Kxd7 {[%emt 0:00:01]} 60. Kd3 {[%emt 0:01:05]} Ke6 {[%emt 0:00:13]} 61. Kc4 {[%emt 0:00:38]} Kf5 {[%emt 0:00:28]} 62. Kd3 {[%emt 0:00:11]} a4 {[%emt 0:00:37]} 63. Bc3 {[%emt 0:00:11]} Be7 {[%emt 0:00:40]} 64. Kd4 {[%emt 0:00:24]} Bf8 {[%emt 0:00:39]} 65. Ba5 {[%emt 0:00:11]} Be7 {[%emt 0:02:18]} 66. Bb4 {[%emt 0:00:34]} Ke6 {[%emt 0:00:11]} 67. Kc4 {[%emt 0:00:11]} Bd8 {[%emt 0:00:41]} 68. Bc3 {[%emt 0:00:35]} Bc7 {[%emt 0:00:28]} 69. Bd2 {[%emt 0:00:24]} Bb8 {[%emt 0:00:40]} 70. Be3 {[%emt 0:00:12]} Kf5 {[%emt 0:00:34]} 71. Kd3 {[%emt 0:00:24]} Bc7 {[%emt 0:00:20]} 72. Bd2 {[%emt 0:00:02]} Bd8 {[%emt 0:00:19]} 73. Bc3 {[%emt 0:00:30]} Ke6 {[%emt 0:00:09]} 74. Kc4 {[%emt 0:00:15]} f5 {[%emt 0:00:18]} 75. Kb4 {[%emt 0:02:21]} Kd5 {[%emt 0:01:18]} 76. Kxa4 {[%emt 0:00:27]} Kxc5 {[%emt 0:01:31]} 77. Kb3 {[%emt 0:00:03]} Bc7 {[%emt 0:00:34]} 78. Bd2 {[%emt 0:00:48]} Kd4 {[%emt 0:00:16]} 79. Kc2 {[%emt 0:00:52]} Ke4 {[%emt 0:00:19]} 80. a4 {[%emt 0:00:53]} Kf3 {[%emt 0:00:13]} 81. Kd3 {[%emt 0:00:29]} Kg2 {[%emt 0:00:07]} 82. a5 {[%emt 0:00:34]} Bxa5 {[%emt 0:00:43]} 83. Bxa5 {[%emt 0:00:09]} Kxh2 {[%emt 0:00:02]} 84. Be1 {[%emt 0:00:48]} Kg2 {[%emt 0:00:04]} 85. Ke2 {[%emt 0:00:35]} h2 {[%emt 0:00:03]} 86. Kd3 {[%emt 0:00:51]} 0-1